fUSD/lending_fUSD_20250628
["ID","MTS","AMOUNT","RATE_DAILY","PERIOD"]
[368335587,1751127074328,-490.0,0.00032054,9]
[368335588,1751127074337,-490.0,0.00032054,9]
[368335589,1751127074347,-490.0,0.00032054,9]
[368335590,1751127074357,-972.76,0.00032054,9]
[368335591,1751127074366,-887.64,0.00032054,9]
[368335592,1751127074376,-1500.0,0.00032068,5]
[368335593,1751127074386,-168.87258988,0.00032135,15]
[368335594,1751127074395,-1000.0,0.00032246,5]
[368335595,1751127074405,-1500.0,0.00032249,5]
[368335596,1751127074415,-1500.0,0.00032249,5]
[368335597,1751127074426,-1195.67569277,0.00032288,2]
[368335598,1751127074435,-202.0,0.00032312,120]
[368335599,1751127074445,-1000.0,0.00032316,9]
[368335600,1751127074455,-490.0,0.00032316,9]
[368335601,1751127074464,-490.0,0.00032316,9]
[368335602,1751127074474,-510.0,0.00032316,9]
[368335603,1751127074483,-490.0,0.00032316,9]
[368335604,1751127074493,-547.99,0.00032316,9]
[368335605,1751127074502,-490.0,0.00032316,9]
[368335606,1751127074512,-490.0,0.00032316,9]
[368335607,1751127074521,-490.0,0.00032316,9]
[368335608,1751127074531,-740.17,0.00032316,9]
[368335609,1751127074541,-490.0,0.00032316,9]
[368335610,1751127074551,-558.87,0.00032316,9]
[368335611,1751127074560,-803.17,0.00032316,9]
[368335612,1751127074570,-1019.29,0.00032316,9]
[368335613,1751127074579,-1175.88,0.00032316,9]
[368335614,1751127074589,-1149.58,0.00032316,9]
[368335615,1751127074599,-490.0,0.00032316,9]
[368335616,1751127074608,-2359.85,0.00032316,9]
[368335617,1751127074618,-536.0,0.00032316,9]
[368335618,1751127074627,-905.54,0.00032316,9]
[368335619,1751127074637,-490.0,0.00032316,9]
[368335620,1751127074647,-1256.72,0.00032316,9]
[368335621,1751127074656,-520.09,0.00032316,9]
[368335622,1751127074666,-917.86,0.00032316,9]
[368335623,1751127074677,-523.33,0.00032316,9]
[368335624,1751127074686,-945.59,0.00032316,9]
[368335625,1751127074695,-1025.49,0.00032316,9]
[368335626,1751127074705,-490.0,0.00032316,9]
[368335627,1751127074716,-896.35,0.00032316,9]
[368335628,1751127074725,-579.65,0.00032317,9]
[368335629,1751127074735,-490.0,0.00032317,9]
[368335630,1751127074745,-490.0,0.00032317,9]
[368335631,1751127074755,-490.0,0.00032317,9]
[368335632,1751127074765,-490.0,0.00032317,9]
[368335633,1751127074774,-490.0,0.00032317,9]
[368335634,1751127074784,-490.0,0.00032317,9]
[368335635,1751127074794,-490.0,0.00032317,9]
[368335636,1751127074803,-490.0,0.00032317,9]
[368335637,1751127074822,-2521.53,0.00032317,9]
[368335638,1751127074835,-1502.17,0.00032317,9]
[368335639,1751127074845,-525.78769568,0.00032317,9]
[368335640,1751127074856,-1007.242306,0.00032317,9]
[368335641,1751127074867,-4646.96,0.00032317,9]
[368335642,1751127074877,-1743.591254,0.00032317,9]
[368335643,1751127074888,-2711.24,0.00032317,9]
[368335644,1751127074898,-817.339594,0.00032317,9]
[368335645,1751127074909,-1104.91,0.00032317,9]
[368335646,1751127074919,-181.414053,0.00032317,9]
[368335647,1751127074931,-1694.66,0.00032317,9]
[368335648,1751127074941,-1258.13,0.00032317,9]
[368335649,1751127074951,-707.58,0.00032317,9]
[368335650,1751127074962,-638.59,0.00032317,9]
[368335651,1751127074972,-1388.25,0.00032317,9]
[368335652,1751127074983,-940.08,0.00032317,9]
[368335653,1751127074994,-4320.7,0.00032317,9]
[368335654,1751127075005,-450.0,0.00032317,9]
[368335655,1751127075016,-1237.79,0.00032317,9]
[368335656,1751127075027,-1387.21,0.00032317,9]
[368335657,1751127075038,-490.0,0.00032317,9]
[368335658,1751127075048,-954.12,0.00032317,9]
[368335659,1751127075059,-813.75,0.00032317,9]
[368335660,1751127075070,-3596.5,0.00032317,9]
[368335661,1751127075081,-1282.84,0.00032317,9]
[368335662,1751127075091,-1123.66,0.00032317,9]
[368335663,1751127075102,-852.99,0.00032317,9]
[368335664,1751127075112,-442.80114787,0.00032317,9]
[368335665,1751127075122,-490.0,0.00032327,9]
[368335666,1751127075133,-584.40331768,0.00032327,9]
[368335667,1751127075144,-490.0,0.00032327,9]
[368335668,1751127075154,-490.0,0.00032327,9]
[368335669,1751127075164,-490.0,0.00032327,9]
[368335670,1751127075175,-490.0,0.00032327,9]
[368335671,1751127075185,-490.0,0.00032327,9]
[368335672,1751127075195,-490.0,0.00032327,9]
[368335673,1751127075207,-490.0,0.00032327,9]
[368335674,1751127075217,-490.0,0.00032327,9]
[368335675,1751127075228,-490.0,0.00032327,9]
[368335676,1751127075238,-490.0,0.00032327,9]
[368335677,1751127075254,-455.18979425,0.00032327,9]
[368335678,1751127075265,-739.08,0.00032327,9]
[368335679,1751127075276,-490.0,0.00032327,9]
[368335680,1751127075287,-490.0,0.00032327,9]
[368335681,1751127075298,-953.0,0.00032327,9]
[368335682,1751127075309,-490.0,0.00032327,9]
[368335683,1751127075321,-1866.06,0.00032327,9]
[368335684,1751127075332,-496.60914748,0.00032327,9]
[368335685,1751127075343,-490.0,0.00032327,9]
[368335686,1751127075354,-490.0,0.00032327,9]
[368335687,1751127075367,-495.55369589,0.00032327,9]
[368335688,1751127075378,-492.4562666,0.00032327,9]
[368335689,1751127075388,-399.71906874,0.00032327,9]
[368335690,1751127075399,-490.0,0.00032327,9]
[368335691,1751127075412,-490.0,0.00032327,9]
[368335692,1751127075422,-944.26,0.00032327,9]
[368335693,1751127075433,-490.0,0.00032327,9]
[368335694,1751127075447,-157.70934721,0.00032327,9]
[368335695,1751127075458,-490.0,0.00032327,9]
[368335696,1751127075469,-490.0,0.00032327,9]
[368335697,1751127075480,-490.0,0.00032327,9]
[368335698,1751127075491,-490.0,0.00032327,9]
[368335699,1751127075501,-490.0,0.00032327,9]
[368335700,1751127075512,-994.17,0.00032327,9]
[368335701,1751127075522,-490.0,0.00032327,9]
[368335702,1751127075532,-917.26,0.00032327,9]
[368335703,1751127075543,-490.0,0.00032327,9]
[368335704,1751127075553,-490.0,0.00032327,9]
[368335705,1751127075563,-490.0,0.00032327,9]
[368335706,1751127075574,-834.16,0.00032327,9]
[368335707,1751127075584,-490.0,0.00032327,9]
[368335708,1751127075594,-490.0,0.00032327,9]
[368335709,1751127075604,-490.0,0.00032327,9]
[368335710,1751127075615,-490.0,0.00032327,9]
[368335711,1751127075625,-490.0,0.00032327,9]
[368335712,1751127075635,-668.47,0.00032327,9]
[368335713,1751127075646,-490.0,0.00032327,9]
[368335714,1751127075656,-490.0,0.00032327,9]
[368335715,1751127075666,-490.0,0.00032327,9]
[368335716,1751127075677,-490.0,0.00032327,9]
[368335717,1751127075691,-500.0,0.00032327,9]
[368335718,1751127075702,-490.0,0.00032327,9]
[368335719,1751127075712,-573.62,0.00032327,9]
[368335720,1751127075723,-490.0,0.00032327,9]
[368335721,1751127075733,-490.0,0.00032327,9]
[368335722,1751127075744,-627.55,0.00032327,9]
[368335723,1751127075756,-490.0,0.00032327,9]
[368335724,1751127075767,-490.0,0.00032327,9]
[368335725,1751127075778,-595.52,0.00032327,9]
[368335726,1751127075788,-490.0,0.00032327,9]
[368335727,1751127075799,-490.0,0.00032327,9]
[368335728,1751127075810,-490.0,0.00032327,9]
[368335729,1751127075822,-490.0,0.00032327,9]
[368335730,1751127075833,-490.0,0.00032327,9]
[368335731,1751127075845,-490.0,0.00032327,9]
[368335732,1751127075857,-490.0,0.00032327,9]
[368335733,1751127075867,-543.51,0.00032327,9]
[368335734,1751127075879,-490.0,0.00032327,9]
[368335735,1751127076157,-490.0,0.00032327,9]
[368335736,1751127076176,-490.0,0.00032327,9]
[368335737,1751127076193,-689.4,0.00032327,9]
[368335738,1751127076202,-490.0,0.00032327,9]
[368335739,1751127076212,-490.0,0.00032327,9]
[368335740,1751127076222,-490.0,0.00032327,9]
[368335741,1751127076232,-490.0,0.00032327,9]
[368335742,1751127076242,-490.0,0.00032327,9]
[368335743,1751127076251,-490.0,0.00032327,9]
[368335744,1751127076262,-490.0,0.00032327,9]
[368335745,1751127076271,-490.0,0.00032327,9]
[368335746,1751127076280,-490.0,0.00032327,9]
[368335747,1751127076289,-490.0,0.00032327,9]
[368335748,1751127076299,-490.0,0.00032327,9]
[368335749,1751127076308,-1176.69,0.00032327,9]
[368335750,1751127076318,-1075.47,0.00032327,9]
[368335751,1751127076327,-490.0,0.00032327,9]
[368335752,1751127076337,-490.0,0.00032327,9]
[368335753,1751127076346,-688.03,0.00032327,9]
[368335754,1751127076356,-465.80973417,0.00032327,9]
[368335755,1751127076365,-490.0,0.00032327,9]
[368335756,1751127076375,-490.0,0.00032327,9]
[368335757,1751127076384,-490.0,0.00032327,9]
[368335758,1751127076394,-490.0,0.00032327,9]
[368335759,1751127076403,-529.89,0.00032327,9]
[368335760,1751127076413,-490.0,0.00032327,9]
[368335761,1751127076434,-490.0,0.00032327,9]
[368335762,1751127076443,-776.12,0.00032327,9]
[368335763,1751127076454,-490.0,0.00032327,9]
[368335764,1751127076464,-490.0,0.00032327,9]
[368335765,1751127076474,-490.0,0.00032327,9]
[368335766,1751127076483,-490.0,0.00032327,9]
[368335767,1751127076494,-1287.13,0.00032327,9]
[368335768,1751127076503,-490.0,0.00032327,9]
[368335769,1751127076514,-490.0,0.00032327,9]
[368335770,1751127076525,-490.0,0.00032327,9]
[368335771,1751127076536,-490.0,0.00032327,9]
[368335772,1751127076547,-490.0,0.00032327,9]
[368335773,1751127076557,-495.7434258,0.00032327,9]
[368335774,1751127076568,-519.0,0.00032327,9]
[368335775,1751127076578,-490.0,0.00032327,9]
[368335776,1751127076588,-490.0,0.00032327,9]
[368335777,1751127076597,-490.0,0.00032327,9]
[368335778,1751127076608,-490.0,0.00032327,9]
[368335779,1751127076619,-490.0,0.00032327,9]
[368335780,1751127076630,-490.0,0.00032327,9]
[368335781,1751127076643,-490.0,0.00032327,9]
[368335782,1751127076653,-490.0,0.00032327,9]
[368335783,1751127076663,-490.0,0.00032327,9]
[368335784,1751127076672,-2039.39,0.00032327,9]
[368335785,1751127076685,-500.0,0.00032327,9]
[368335786,1751127076695,-543.97,0.00032327,9]
[368335787,1751127076705,-490.0,0.00032327,9]
[368335788,1751127076715,-490.0,0.00032327,9]
[368335789,1751127076727,-490.0,0.00032327,9]
[368335790,1751127076737,-526.53932633,0.00032327,9]
[368335791,1751127076747,-611.47323318,0.00032327,9]
[368335792,1751127076758,-1032.02,0.00032327,9]
[368335793,1751127076769,-490.0,0.00032327,9]
[368335794,1751127076778,-835.31,0.00032327,9]
[368335795,1751127076787,-490.0,0.00032327,9]
[368335796,1751127076797,-490.0,0.00032327,9]
[368335797,1751127076807,-955.27,0.00032327,9]
[368335798,1751127076817,-490.0,0.00032327,9]
[368335799,1751127076827,-490.0,0.00032327,9]
[368335800,1751127076837,-634.12,0.00032327,9]
[368335801,1751127076846,-1983.49,0.00032327,9]
[368335802,1751127076856,-490.0,0.00032327,9]
[368335803,1751127076866,-594.03829547,0.00032327,9]
[368335804,1751127076875,-567.9,0.00032327,9]
[368335805,1751127076884,-490.0,0.00032327,9]
[368335806,1751127076894,-490.0,0.00032327,9]
[368335807,1751127076903,-490.0,0.00032327,9]
[368335808,1751127076913,-1131.2,0.00032327,9]
[368335809,1751127076922,-490.0,0.00032327,9]
[368335810,1751127076933,-490.0,0.00032327,9]
[368335811,1751127076942,-490.0,0.00032327,9]
[368335812,1751127076952,-490.0,0.00032327,9]
[368335813,1751127076962,-490.0,0.00032327,9]
[368335814,1751127076971,-490.0,0.00032327,9]
[368335815,1751127076981,-1007.05,0.00032327,9]
[368335816,1751127076991,-663.27,0.00032327,9]
[368335817,1751127077000,-1439.67,0.00032327,9]
[368335818,1751127077010,-490.0,0.00032327,9]
[368335819,1751127077019,-490.0,0.00032327,9]
[368335820,1751127077028,-500.0,0.00032327,9]
[368335821,1751127077038,-490.0,0.00032327,9]
[368335822,1751127077047,-490.0,0.00032327,9]
[368335823,1751127077056,-490.0,0.00032327,9]
[368335824,1751127077066,-1134.06,0.00032327,9]
[368335825,1751127077076,-490.0,0.00032327,9]
[368335826,1751127077085,-611.28,0.00032327,9]
[368335827,1751127077095,-490.0,0.00032327,9]
[368335828,1751127077104,-1774.05,0.00032327,9]
[368335829,1751127077114,-584.89008709,0.00032327,9]
[368335830,1751127077125,-1393.8,0.00032327,9]
[368335831,1751127077134,-720.46,0.00032327,9]
[368335832,1751127077144,-490.0,0.00032327,9]
[368335833,1751127077153,-490.0,0.00032327,9]
[368335834,1751127077162,-490.0,0.00032327,9]
[368335835,1751127077172,-490.0,0.00032327,9]
[368335836,1751127077182,-1542.14,0.00032327,9]
[368335837,1751127077192,-490.0,0.00032327,9]
[368335838,1751127077201,-490.0,0.00032327,9]
[368335839,1751127077211,-490.0,0.00032327,9]
[368335840,1751127077220,-490.0,0.00032327,9]
[368335841,1751127077230,-490.0,0.00032327,9]
[368335842,1751127077239,-490.0,0.00032327,9]
[368335843,1751127077249,-490.0,0.00032327,9]
[368335844,1751127077258,-490.0,0.00032327,9]
[368335845,1751127077268,-490.0,0.00032327,9]
[368335846,1751127077278,-490.0,0.00032327,9]
[368335847,1751127077287,-188.61444764,0.00032327,9]
[368335848,1751127077297,-620.36,0.00032327,9]
[368335849,1751127077307,-490.0,0.00032327,9]
[368335850,1751127077317,-2456.76,0.00032327,9]
[368335851,1751127077327,-776.94,0.00032327,9]
[368335852,1751127077336,-490.0,0.00032327,9]
[368335853,1751127077346,-490.0,0.00032327,9]
[368335854,1751127077356,-558.12,0.00032327,9]
[368335855,1751127077369,-503.78351696,0.00032327,9]
[368335856,1751127077378,-490.0,0.00032327,9]
[368335857,1751127077388,-1690.62,0.00032327,9]
[368335858,1751127077397,-1227.1,0.00032327,9]
[368335859,1751127077406,-490.0,0.00032327,9]
[368335860,1751127077416,-490.0,0.00032327,9]
[368335861,1751127077426,-509.26,0.00032327,9]
[368335862,1751127077436,-490.0,0.00032327,9]
[368335863,1751127077445,-2322.24,0.00032327,9]
[368335864,1751127077454,-490.0,0.00032327,9]
[368335865,1751127077463,-503.53,0.00032327,9]
[368335866,1751127077473,-1761.03,0.00032327,9]
[368335867,1751127077482,-1414.4,0.00032327,9]
[368335868,1751127077492,-490.0,0.00032327,9]
[368335869,1751127077501,-490.0,0.00032327,9]
[368335870,1751127077510,-862.98,0.00032327,9]
[368335871,1751127077520,-490.0,0.00032327,9]
[368335872,1751127077530,-2730.6,0.00032327,9]
[368335873,1751127077540,-1553.67,0.00032327,9]
[368335874,1751127077549,-969.59,0.00032327,9]
[368335875,1751127077559,-490.0,0.00032327,9]
[368335876,1751127077569,-586.07,0.00032327,9]
[368335877,1751127077579,-490.0,0.00032327,9]
[368335878,1751127077589,-1069.27,0.00032327,9]
[368335879,1751127077598,-734.06,0.00032327,9]
[368335880,1751127077608,-1270.58,0.00032327,9]
[368335881,1751127077618,-490.0,0.00032327,9]
[368335882,1751127077628,-973.61,0.00032327,9]
[368335883,1751127077637,-490.0,0.00032327,9]
[368335884,1751127077646,-490.0,0.00032327,9]
[368335885,1751127077656,-490.0,0.00032327,9]
[368335886,1751127077665,-973.79,0.00032327,9]
[368335887,1751127077675,-532.27,0.00032327,9]
[368335888,1751127077685,-490.0,0.00032327,9]
[368335889,1751127077695,-498.30870694,0.00032327,9]
[368335890,1751127077704,-490.0,0.00032327,9]
[368335891,1751127077714,-1403.31,0.00032327,9]
[368335892,1751127077724,-524.8,0.00032327,9]
[368335893,1751127077733,-490.0,0.00032327,9]
[368335894,1751127077743,-490.0,0.00032327,9]
[368335895,1751127077752,-566.4,0.00032327,9]
[368335896,1751127077763,-781.13,0.00032327,9]
[368335897,1751127077773,-1038.76,0.00032327,9]
[368335898,1751127077783,-490.0,0.00032327,9]
[368335899,1751127077793,-490.0,0.00032327,9]
[368335900,1751127077802,-565.74,0.00032327,9]
[368335901,1751127077812,-490.0,0.00032327,9]
[368335902,1751127077822,-1376.27,0.00032327,9]
[368335903,1751127077832,-537.95,0.00032327,9]
[368335904,1751127077841,-538.92,0.00032327,9]
[368335905,1751127077851,-970.04,0.00032327,9]
[368335906,1751127077860,-904.08,0.00032327,9]
[368335907,1751127077870,-1123.45,0.00032327,9]
[368335908,1751127077880,-1014.34,0.00032327,9]
[368335909,1751127077889,-490.0,0.00032327,9]
[368335910,1751127077900,-490.0,0.00032327,9]
[368335911,1751127077909,-490.0,0.00032327,9]
[368335912,1751127077919,-460.40233628,0.00032327,9]
[368335913,1751127077929,-440.0,0.00032327,9]
[368335914,1751127077939,-1037.25,0.00032327,9]
[368335915,1751127077948,-806.78,0.00032327,9]
[368335916,1751127077958,-490.0,0.00032327,9]
[368335917,1751127077967,-884.11,0.00032327,9]
[368335918,1751127077977,-490.0,0.00032327,9]
[368335919,1751127077986,-490.0,0.00032327,9]
[368335920,1751127077997,-490.0,0.00032327,9]
[368335921,1751127078006,-490.0,0.00032327,9]
[368335922,1751127078016,-490.0,0.00032327,9]
[368335923,1751127078026,-490.0,0.00032327,9]
[368335924,1751127078036,-744.62,0.00032327,9]
[368335925,1751127078045,-663.58,0.00032327,9]
[368335926,1751127078055,-856.54,0.00032327,9]
[368335927,1751127078065,-1654.81,0.00032327,9]
[368335928,1751127078075,-490.0,0.00032327,9]
[368335929,1751127078085,-763.15,0.00032327,9]
[368335930,1751127078094,-490.0,0.00032327,9]
[368335931,1751127078104,-1914.18,0.00032327,9]
[368335932,1751127078115,-539.31975022,0.00032327,9]
[368335933,1751127078125,-213.01166729,0.00032328,9]
[368335934,1751127078135,-300.0,0.00032328,9]
[368335935,1751127078144,-745.71,0.00032328,9]
[368335936,1751127078154,-490.0,0.00032328,9]
[368335937,1751127078165,-490.0,0.00032328,9]
[368335938,1751127078176,-490.0,0.00032328,9]
[368335939,1751127078186,-490.0,0.00032328,9]
[368335940,1751127078196,-490.0,0.00032328,9]
[368335941,1751127078205,-176.57675625,0.00032328,9]
[368335942,1751127078215,-490.0,0.00032328,9]
[368335943,1751127078225,-490.0,0.00032328,9]
[368335944,1751127078235,-490.0,0.00032328,9]
[368335945,1751127078244,-490.0,0.00032328,9]
[368335946,1751127078254,-490.0,0.00032328,9]
[368335947,1751127078263,-1229.39,0.00032328,9]
[368335948,1751127078273,-490.0,0.00032328,9]
[368335949,1751127078283,-490.0,0.00032328,9]
[368335950,1751127078293,-497.10838277,0.00032328,9]
[368335951,1751127078302,-577.40036257,0.00032328,9]
[368335952,1751127078312,-772.85,0.00032328,9]
[368335953,1751127078322,-490.0,0.00032328,9]
[368335954,1751127078332,-504.22,0.00032328,9]
[368335955,1751127078341,-490.0,0.00032328,9]
[368335956,1751127078351,-490.0,0.00032328,9]
[368335957,1751127078362,-490.0,0.00032328,9]
[368335958,1751127078372,-972.76,0.00032328,9]
[368335959,1751127078382,-887.64,0.00032328,9]
[368335960,1751127078391,-1500.0,0.00032399,5]
[368335961,1751127078401,-168.0,0.00032408,2]
[368335962,1751127078411,-201.9624856,0.00032424,26]
[368335963,1751127078420,-11174.00773786,0.00032451,2]
[368335964,1751127078430,-168.0,0.00032491,2]
[368335965,1751127078440,-1000.0,0.0003259,9]
[368335966,1751127078449,-490.0,0.0003259,9]
[368335967,1751127078459,-490.0,0.0003259,9]
[368335968,1751127078468,-490.0,0.0003259,9]
[368335969,1751127078478,-547.99,0.0003259,9]
[368335970,1751127078487,-490.0,0.0003259,9]
[368335971,1751127078497,-490.0,0.0003259,9]
[368335972,1751127078506,-490.0,0.0003259,9]
[368335973,1751127078516,-740.17,0.0003259,9]
[368335974,1751127078525,-205.10337162,0.0003259,9]
[368335975,1751127078535,-558.87,0.0003259,9]
[368335976,1751127078544,-803.17,0.0003259,9]
[368335977,1751127078554,-1019.29,0.0003259,9]
[368335978,1751127078564,-1175.88,0.0003259,9]
[368335979,1751127078573,-1149.58,0.0003259,9]
[368335980,1751127078583,-490.0,0.0003259,9]
[368335981,1751127078593,-2359.85,0.0003259,9]
[368335982,1751127078602,-536.0,0.0003259,9]
[368335983,1751127078612,-905.54,0.0003259,9]
[368335984,1751127078621,-1256.72,0.0003259,9]
[368335985,1751127078631,-520.09,0.0003259,9]
[368335986,1751127078640,-917.86,0.0003259,9]
[368335987,1751127078651,-523.33,0.0003259,9]
[368335988,1751127078661,-945.59,0.0003259,9]
[368335989,1751127078671,-1025.49,0.0003259,9]
[368335990,1751127078680,-490.0,0.0003259,9]
[368335991,1751127078691,-896.35,0.0003259,9]
[368335992,1751127078702,-579.65,0.00032591,9]
[368335993,1751127078711,-490.0,0.00032591,9]
[368335994,1751127078720,-485.0,0.00032591,9]
[368335995,1751127078730,-490.0,0.00032591,9]
[368335996,1751127078740,-490.0,0.00032591,9]
[368335997,1751127078749,-490.0,0.00032591,9]
[368335998,1751127078758,-490.0,0.00032591,9]
[368335999,1751127078768,-501.62051637,0.00032591,9]
[368336000,1751127078778,-2521.53,0.00032591,9]
[368336001,1751127078788,-1502.17,0.00032591,9]
[368336002,1751127078798,-1007.242306,0.00032591,9]
[368336003,1751127078807,-4646.96,0.00032591,9]
[368336004,1751127078816,-1743.591254,0.00032591,9]
[368336005,1751127078826,-2711.24,0.00032591,9]
[368336006,1751127078836,-817.339594,0.00032591,9]
[368336007,1751127078846,-165.056106,0.00032591,9]
[368336008,1751127078856,-1104.91,0.00032591,9]
[368336009,1751127078866,-181.414053,0.00032591,9]
[368336010,1751127078876,-1694.66,0.00032591,9]
[368336011,1751127078885,-1258.13,0.00032591,9]
[368336012,1751127078894,-707.58,0.00032591,9]
[368336013,1751127078904,-638.59,0.00032591,9]
[368336014,1751127078913,-1388.25,0.00032591,9]
[368336015,1751127078924,-940.08,0.00032591,9]
[368336016,1751127078935,-4320.7,0.00032591,9]
[368336017,1751127078945,-1237.79,0.00032591,9]
[368336018,1751127078954,-1387.21,0.00032591,9]
[368336019,1751127078963,-490.0,0.00032591,9]
[368336020,1751127078973,-954.12,0.00032591,9]
[368336021,1751127078982,-813.75,0.00032591,9]
[368336022,1751127078992,-3596.5,0.00032591,9]
[368336023,1751127079001,-1282.84,0.00032591,9]
[368336024,1751127079011,-1123.66,0.00032591,9]
[368336025,1751127079020,-852.99,0.00032591,9]
[368336026,1751127079030,-490.0,0.00032601,9]
[368336027,1751127079039,-490.0,0.00032601,9]
[368336028,1751127079048,-490.0,0.00032601,9]
[368336029,1751127079058,-490.0,0.00032601,9]
[368336030,1751127079068,-490.0,0.00032601,9]
[368336031,1751127079077,-490.0,0.00032601,9]
[368336032,1751127079087,-490.0,0.00032601,9]
[368336033,1751127079096,-490.0,0.00032601,9]
[368336034,1751127079106,-490.0,0.00032601,9]
[368336035,1751127079116,-490.0,0.00032601,9]
[368336036,1751127079126,-490.0,0.00032601,9]
[368336037,1751127079135,-739.08,0.00032601,9]
[368336038,1751127079144,-490.0,0.00032601,9]
[368336039,1751127079359,-490.0,0.00032601,9]
[368336040,1751127079372,-953.0,0.00032601,9]
[368336041,1751127079381,-490.0,0.00032601,9]
[368336042,1751127079391,-1866.06,0.00032601,9]
[368336043,1751127079401,-490.0,0.00032601,9]
[368336044,1751127079410,-490.0,0.00032601,9]
[368336045,1751127079420,-490.0,0.00032601,9]
[368336046,1751127079430,-944.26,0.00032601,9]
[368336047,1751127079440,-490.0,0.00032601,9]
[368336048,1751127079449,-490.0,0.00032601,9]
[368336049,1751127079459,-490.0,0.00032601,9]
[368336050,1751127079469,-490.0,0.00032601,9]
[368336051,1751127079479,-490.0,0.00032601,9]
[368336052,1751127079488,-490.0,0.00032601,9]
[368336053,1751127079497,-994.17,0.00032601,9]
[368336054,1751127079507,-490.0,0.00032601,9]
[368336055,1751127079516,-917.26,0.00032601,9]
[368336056,1751127079525,-490.0,0.00032601,9]
[368336057,1751127079535,-490.0,0.00032601,9]
[368336058,1751127079545,-490.0,0.00032601,9]
[368336059,1751127079554,-834.16,0.00032601,9]
[368336060,1751127079564,-500.40451269,0.00032601,9]
[368336061,1751127079574,-490.0,0.00032601,9]
[368336062,1751127079583,-490.0,0.00032601,9]
[368336063,1751127079593,-490.0,0.00032601,9]
[368336064,1751127079603,-490.0,0.00032601,9]
[368336065,1751127079612,-668.47,0.00032601,9]
[368336066,1751127079621,-490.0,0.00032601,9]
[368336067,1751127079631,-490.0,0.00032601,9]
[368336068,1751127079641,-490.0,0.00032601,9]
[368336069,1751127079650,-490.0,0.00032601,9]
[368336070,1751127079659,-490.0,0.00032601,9]
[368336071,1751127079669,-573.62,0.00032601,9]
[368336072,1751127079680,-490.0,0.00032601,9]
[368336073,1751127079691,-490.0,0.00032601,9]
[368336074,1751127079700,-627.55,0.00032601,9]
[368336075,1751127079710,-490.0,0.00032601,9]
[368336076,1751127079720,-396.14259973,0.00032601,9]
[368336077,1751127079729,-490.0,0.00032601,9]
[368336078,1751127079740,-595.52,0.00032601,9]
[368336079,1751127079751,-490.0,0.00032601,9]
[368336080,1751127079761,-490.0,0.00032601,9]
[368336081,1751127079771,-490.0,0.00032601,9]
[368336082,1751127079781,-490.0,0.00032601,9]
[368336083,1751127079790,-490.0,0.00032601,9]
[368336084,1751127079799,-490.0,0.00032601,9]
[368336085,1751127079809,-543.51,0.00032601,9]
[368336086,1751127079818,-490.0,0.00032601,9]